bitfinex-derivatives/quotes_BNBF0:USTF0_20241230
["timestamp","ask_amount","ask_price","bid_price","bid_amount"]
[1735520590458,0.26335479,699.4,698.25,0.28643036]
[1735520590664,0.26335479,699.39,698.25,0.28643036]
[1735520590967,0.26335479,699.38,698.26,0.56102319]
[1735520591163,0.26335479,699.37,698.27,0.56102319]
[1735520591467,0.26335479,699.36,698.28,0.56102319]
[1735520591664,0.26335479,699.35,698.29,0.56102319]
[1735520591864,0.26335479,699.34,698.3,0.56102319]
[1735520592067,0.26335479,699.33,698.31,0.56171483]
[1735520592260,0.26335479,699.32,698.32,0.56171483]
[1735520592464,0.26335479,699.31,698.33,0.56171483]
[1735520592657,1.06954243,699.43,698.33,0.56171483]
[1735520592864,0.26349303,699.42,698.34,0.56171483]
[1735520593063,0.26349303,699.42,698.35,0.56171483]
[1735520593261,1.06954243,699.29,698.36,0.56171483]
[1735520593462,0.26349303,699.28,698.37,0.56171483]
[1735520593759,0.26349303,699.28,698.38,0.56171483]
[1735520593960,0.26349303,699.28,698.25,0.28643036]
[1735520594156,0.26349303,699.28,698.26,0.56184572]
[1735520594358,0.26349303,699.28,698.27,0.56184572]
[1735520594359,1.06954243,699.23,698.27,0.56184572]
[1735520594659,0.26349303,699.22,698.28,0.56184572]
[1735520594861,0.26349303,699.22,698.29,0.56184572]
[1735520595059,0.26349303,699.22,698.3,0.56184572]
[1735520595267,1.06954243,699.23,698.31,0.56184572]
[1735520595268,0.26353623,699.21,698.31,0.56184572]
[1735520595465,1.06954243,699.17,697.13,1.06189398]
[1735520595659,0.26353623,699.16,697.23,0.28684938]
[1735520595863,0.26353623,699.16,697.24,0.56129017]
[1735520596164,0.26353623,699.16,697.25,0.56129017]
[1735520596361,0.26353623,699.16,697.26,0.56129017]
[1735520596565,0.26353623,699.16,697.27,0.56129017]
[1735520596765,0.26353623,699.16,697.28,0.56129017]
[1735520596967,0.26353623,699.16,697.29,0.56129017]
[1735520597167,0.26353623,699.16,697.3,0.56129017]
[1735520597465,1.06954243,699.15,697.31,0.56129017]
[1735520597666,0.263555,699.14,697.32,0.56129017]
[1735520597861,0.263555,699.14,697.34,0.28680414]
[1735520598061,1.06954243,699.15,697.35,0.56129017]
[1735520598260,0.26355954,699.14,697.37,0.2867918]
[1735520598465,0.26355954,699.14,697.38,0.56129017]
[1735520598663,0.26355954,699.13,697.39,0.56129017]
[1735520598863,0.26355954,699.12,697.41,0.28677535]
[1735520599066,1.06954243,699.16,697.41,0.28677535]
[1735520599067,0.26355954,699.11,697.41,0.28677535]
[1735520599261,0.26355954,699.1,697.42,0.56059781]
[1735520599468,0.26355954,699.09,697.44,0.28676301]
[1735520599665,0.26355954,699.08,697.45,0.56059781]
[1735520599862,0.26355954,699.07,697.47,0.28675068]
[1735520600064,0.26355954,699.06,697.48,0.56059781]
[1735520600368,0.26359272,699.05,697.49,0.84734027]
[1735520600568,0.62053837,699.63,697.49,0.84734027]
[1735520600569,0.26359272,699.04,697.5,0.56059781]
[1735520600765,0.26359272,699.03,697.51,0.84733205]
[1735520600967,0.26359272,699.02,697.52,0.84732793]
[1735520601168,0.26359272,699.01,697.53,0.84732382]
[1735520601368,0.26359272,699.0,697.54,0.84731971]
[1735520601567,0.26359272,698.99,697.55,0.559447]
[1735520601768,0.26359272,698.98,697.56,0.559447]
[1735520601967,0.26359272,698.97,697.57,0.559447]
[1735520602169,0.26359272,698.96,697.58,0.559447]
[1735520602369,0.26359272,698.95,697.59,0.559447]
[1735520602571,0.26359272,698.94,697.6,0.559447]
[1735520602774,0.26359272,698.93,697.61,0.559447]
[1735520602973,0.26359272,698.92,697.62,0.559447]
[1735520603173,0.26359272,698.91,697.63,0.559447]
[1735520603471,0.26359272,698.9,697.64,0.8461278]
[1735520603672,0.26359272,698.89,697.65,0.559447]
[1735520603866,0.26359272,698.88,697.66,0.559447]
[1735520604175,0.26359272,698.87,697.67,0.559447]
[1735520604467,0.26359272,698.86,697.68,0.559447]
[1735520604774,0.26359272,698.85,697.69,0.55827378]
[1735520604974,0.26359272,698.84,697.7,0.55827378]
[1735520605173,0.26360265,698.83,697.71,0.55827378]
[1735520605476,0.26360265,698.82,697.72,0.55827378]
[1735520605775,0.26360265,698.81,697.73,0.55827378]
[1735520605975,0.26360265,698.8,697.74,0.55827378]
[1735520606269,0.26360265,698.79,697.75,0.55827378]
[1735520606473,0.26360265,698.78,697.76,0.55827378]
[1735520606673,0.26360265,698.77,697.77,0.55827378]
[1735520606872,1.06954243,699.22,697.78,0.55827378]
[1735520607073,0.26354768,699.21,697.79,0.55827378]
[1735520607376,0.26354768,699.2,697.8,0.55827378]
[1735520607675,0.26354767,699.19,697.81,0.55827378]
[1735520607873,0.26354767,699.18,697.82,0.55827378]
[1735520608076,0.26354767,699.17,697.64,0.2866808]
[1735520608274,1.06954243,699.33,697.65,0.55735747]
[1735520608275,0.26354767,699.16,697.65,0.55735747]
[1735520608474,0.26354767,699.15,697.66,0.55735747]
[1735520608676,0.26354767,699.14,697.67,0.55735747]
[1735520608875,0.26354767,699.13,697.68,0.55735747]
[1735520609076,0.26354767,699.12,697.69,0.55735747]
[1735520609276,0.26354767,699.11,697.7,0.55735747]
[1735520609574,0.26354767,699.1,697.71,0.55735747]
[1735520609778,0.26354767,699.09,697.72,0.55735747]
[1735520609979,1.06954243,699.36,697.64,0.2866808]
[1735520610170,0.26351712,699.35,697.65,0.55709629]
[1735520610371,0.26351712,699.34,697.66,0.55709629]
[1735520610672,0.26351712,699.33,697.67,0.55717821]
[1735520610871,0.26351712,699.32,697.68,0.55717821]
[1735520611075,0.26351712,699.31,697.69,0.55717821]
[1735520611271,0.26351712,699.3,697.7,0.55717821]
[1735520611475,0.26351712,699.29,697.71,0.55717821]
[1735520611777,0.26351712,699.28,697.72,0.55717821]
[1735520612076,0.26351712,699.27,697.73,0.55717821]
[1735520612271,0.26351712,699.26,697.74,0.55717821]
[1735520612477,0.2635274,699.25,697.75,0.55717821]
[1735520612776,1.06954243,699.22,697.76,0.55717821]
[1735520612976,0.2635274,699.21,697.77,0.55717821]
[1735520613169,0.2635274,699.2,697.78,0.55717821]
[1735520613369,0.2635274,699.19,697.79,0.55717821]
[1735520613672,0.2635274,699.18,697.64,0.2866808]
[1735520613872,0.2635274,699.17,697.65,0.55743622]
[1735520614071,0.2635274,699.16,697.66,0.55743622]
[1735520614273,0.2635274,699.15,697.67,0.55743622]
[1735520614477,0.2635274,699.14,697.68,0.55743622]
[1735520614672,1.06954243,699.19,697.69,0.55743622]
[1735520614872,1.06954243,699.4,697.64,0.2866808]
[1735520614873,1.06954243,699.08,697.7,0.55743622]
[1735520615076,0.26356202,699.07,697.71,0.55743622]
[1735520615378,0.26356202,699.07,697.72,0.55743622]
[1735520615577,0.26356202,699.07,697.73,0.55743622]
[1735520615779,1.06954243,699.08,697.74,0.55743622]
[1735520615976,1.06954243,699.08,697.75,0.55743622]
[1735520616177,1.06954243,699.18,697.76,0.55743622]
[1735520616376,1.06954243,699.18,697.77,0.55743622]
[1735520616573,1.06954243,699.18,697.78,0.55743622]
[1735520616778,1.06954243,699.18,697.79,0.55743622]
[1735520616979,0.26356053,699.17,697.8,0.55743622]
[1735520617180,1.06954243,699.16,697.64,0.2866808]
[1735520617381,0.26356053,699.15,697.81,0.5576994]
[1735520617575,0.26356053,699.15,697.64,0.2866808]
[1735520617576,0.26356053,699.15,697.82,0.5576994]
[1735520617782,0.26355131,699.14,697.83,0.5576994]
[1735520617975,0.26355131,699.15,697.84,0.5576994]
[1735520618180,0.26355131,699.14,697.85,0.5576994]
[1735520618380,0.26355131,699.13,697.86,0.5576994]
[1735520618581,0.26355131,699.12,697.87,0.5576994]
[1735520618881,0.26355131,699.11,697.88,0.5576994]
[1735520619183,0.26355131,699.1,697.89,0.5576994]
[1735520619482,0.26355131,699.09,697.9,0.5576994]
[1735520619678,0.26355131,699.08,697.64,0.2866808]
[1735520619875,0.26355131,699.07,697.91,0.55835689]
[1735520620079,1.06954243,699.22,697.92,0.55835689]
[1735520620277,1.06954243,699.61,697.64,0.2866808]
[1735520620278,1.06954243,699.2,697.93,0.55835689]
[1735520620477,0.26355141,699.19,697.94,0.55835689]
[1735520620682,0.26355141,699.19,697.95,0.55835689]
[1735520620882,0.26355141,699.19,697.96,0.55835689]
[1735520621183,0.26355141,699.19,697.97,0.55835689]
[1735520621383,0.26355141,699.19,697.98,0.55835689]
[1735520621384,1.06954243,699.15,697.98,0.55835689]
[1735520621583,0.26355141,699.14,697.99,0.55835689]
[1735520621783,0.26355141,699.14,698.0,0.55835689]
[1735520621985,0.26355141,699.14,698.01,0.55835689]
[1735520622183,0.26355141,699.14,698.02,0.55835689]
[1735520622485,0.26355141,699.14,698.03,0.55835689]
[1735520622685,0.26355542,699.13,697.64,0.2866808]
[1735520622885,0.26355542,699.13,697.65,0.55861831]
[1735520623082,0.26355542,699.13,697.66,0.8452909]
[1735520623279,0.26355542,699.13,697.67,0.55861831]
[1735520623482,0.26355542,699.13,697.68,0.84528268]
[1735520623682,0.26355542,699.13,697.69,0.55861831]
[1735520623885,1.06954243,699.08,697.7,0.55861831]
[1735520624083,0.26355542,699.07,697.71,0.55861831]
[1735520624384,0.26355542,699.07,697.72,0.55861831]
[1735520624585,0.26355542,699.07,697.73,0.55861831]
[1735520624785,0.26355542,699.07,697.74,0.55861831]
[1735520624981,1.06954243,698.89,697.75,0.55861831]
[1735520625188,0.26355542,698.88,697.76,0.55861831]
[1735520625386,0.26355542,698.88,697.77,0.55861831]
[1735520625583,0.26355542,698.88,697.78,0.55861831]
[1735520625782,0.26355542,698.88,697.68,0.28666437]
[1735520625984,1.06954243,698.85,697.69,0.55883009]
[1735520626186,1.06954243,698.85,697.7,0.55883009]
[1735520626487,1.06954243,698.85,697.71,0.55869447]
[1735520626688,0.26357033,698.84,697.72,0.55869447]
[1735520626889,0.26357033,698.84,697.73,0.55869447]
[1735520626890,1.06954243,698.81,697.73,0.55869447]
[1735520627187,0.2635685,698.8,697.74,0.55869447]
[1735520627387,1.06954243,698.81,697.75,0.55869447]
[1735520627586,0.26357417,698.8,697.76,0.55869447]
[1735520627788,1.06954243,698.76,697.77,0.55869447]
[1735520627983,1.06954243,698.76,697.68,0.28666437]
[1735520628183,1.06954243,698.76,697.78,0.55875193]
[1735520628491,1.06954243,698.76,697.79,0.55875193]
[1735520628688,1.06954243,698.76,697.8,0.55875193]
[1735520628885,1.06954243,698.76,697.68,0.28666437]
[1735520629086,1.06954243,698.82,697.69,0.55881777]
[1735520629286,1.06954243,698.82,697.7,0.55881777]
[1735520629489,1.06954243,698.82,697.71,0.55881777]
[1735520629690,1.06954243,698.82,697.72,0.8454657]
[1735520629990,1.06954243,698.82,697.73,0.55881777]
[1735520630183,1.06954243,698.82,697.74,0.55881777]
[1735520630387,0.26352459,698.81,697.75,0.84545338]
[1735520630681,0.26352459,698.81,697.76,0.55881777]
[1735520630885,0.26352459,698.81,697.77,0.84544516]
[1735520631086,0.26352459,698.81,697.78,0.84544106]
[1735520631286,1.06954243,698.77,697.79,0.55881777]
[1735520631488,1.06954243,698.77,697.8,0.84543284]
[1735520631687,1.06954243,698.77,697.81,0.84542873]
[1735520631881,1.06954243,698.77,697.82,0.84542463]
[1735520632088,1.06954243,698.77,697.83,0.55881777]
[1735520632389,1.06954243,698.78,697.84,0.55881777]
[1735520632591,0.26353555,698.77,697.85,0.55881777]
[1735520632791,0.26353555,698.77,697.86,0.55881777]
[1735520633091,0.26353555,698.77,697.87,0.55881777]
[1735520633291,0.2635542,698.76,697.88,0.55881777]
[1735520633492,0.6204191,699.16,697.89,0.55881777]
[1735520633493,1.06954243,698.75,697.89,0.55881777]
[1735520633694,1.06954243,698.75,697.9,0.55881777]
[1735520633892,1.06954243,698.75,697.91,0.55881777]
[1735520634091,1.06954243,698.75,697.92,0.55881777]
[1735520634289,1.06954243,698.75,697.93,0.55881777]
[1735520634494,1.06954243,698.75,697.94,0.55881777]
[1735520634692,1.06954243,698.75,697.95,0.55881777]
[1735520634886,1.06954243,698.75,697.82,0.28660686]
[1735520635090,1.06954243,698.75,697.83,0.56073386]
[1735520635091,0.26357521,698.74,697.83,0.56073386]
[1735520635293,0.26357521,698.74,697.84,0.56073386]
[1735520635495,0.26357521,698.74,697.85,0.56071651]
[1735520635692,1.06954243,698.71,697.86,0.56071651]
[1735520635994,1.06954243,698.71,697.87,0.56071651]
[1735520636189,1.06954243,698.71,697.88,0.56071651]
[1735520636394,1.06954243,698.71,697.89,0.56071651]
[1735520636594,1.06954243,698.71,697.9,0.56071651]
[1735520636798,1.06954243,698.71,697.91,0.56071651]
[1735520636996,1.06954243,698.71,697.92,0.56071651]
[1735520637295,1.06954243,698.71,697.93,0.56120357]
[1735520637595,1.06954243,698.74,697.94,0.56120357]
[1735520637794,1.06954243,698.74,697.95,0.56120357]
[1735520637991,1.06954243,698.74,697.82,0.28660686]
[1735520638196,1.06954243,698.74,697.83,0.56144124]
[1735520638397,1.06954243,698.74,697.84,0.56144124]
[1735520638596,1.06954243,698.74,697.85,0.56144124]
[1735520638793,1.06954243,698.74,697.86,0.56144124]
[1735520638994,1.06954243,698.74,697.87,0.56144124]
[1735520639193,1.06954243,698.74,697.88,0.56144124]
[1735520639395,1.06954243,698.74,697.89,0.56144124]
[1735520639595,1.06954243,698.74,697.9,0.56144124]
[1735520639795,1.06954243,698.75,697.91,0.56144124]
[1735520639992,1.06954243,698.75,697.92,0.56144124]
[1735520640193,1.06954243,698.75,697.93,0.56144124]
[1735520640394,1.06954243,698.75,697.94,0.56144124]
[1735520640595,1.06954243,698.75,697.95,0.56144124]
[1735520640793,1.06954243,698.75,697.82,0.28660686]
[1735520640794,1.06954243,698.75,697.96,0.56205571]
[1735520640997,1.06954243,698.75,697.97,0.56205571]
[1735520641195,1.06954243,698.75,697.98,0.56205571]
[1735520641393,1.06954243,698.75,697.99,0.56205571]
[1735520641592,1.06954243,698.75,698.0,0.56205571]
[1735520641798,1.06954243,698.75,698.01,0.56205571]
[1735520642100,0.62057213,699.33,698.02,0.56205571]
[1735520642101,1.06954243,698.72,698.02,0.56205571]
[1735520642299,1.06954243,698.72,698.03,0.56205571]
[1735520642500,1.06954243,698.72,698.04,0.56205571]
[1735520642700,1.06954243,698.72,698.05,0.56205571]
[1735520642899,1.06954243,698.72,698.06,0.56205571]
[1735520643099,1.06954243,698.72,698.07,0.56205571]
[1735520643301,1.06954243,698.72,698.08,0.56273441]
[1735520643498,1.06954243,698.73,698.09,0.56273441]
[1735520643697,1.06954243,698.73,697.82,0.28660686]
[1735520643901,0.26361529,698.72,697.83,0.56265818]
[1735520644103,0.26363566,698.71,697.84,0.56265818]
[1735520644397,0.26363566,698.7,697.85,0.56265818]
[1735520644600,1.06954243,699.11,697.86,0.56265818]
[1735520644601,1.06954243,698.61,697.86,0.56265818]
[1735520644800,1.06954243,698.61,697.87,0.56265818]
[1735520645103,1.06954243,698.61,697.88,0.56265818]
[1735520645403,1.06954243,698.61,697.82,0.28660686]
[1735520645598,1.06954243,698.61,697.83,0.56354292]
[1735520645799,1.06954243,698.64,697.84,0.56354292]
[1735520645999,1.06954243,698.64,697.85,0.56354292]
[1735520646196,1.06954243,698.64,697.82,0.28660686]
[1735520646402,1.06954243,698.64,697.83,0.56386177]
[1735520646699,1.06954243,698.64,697.82,0.28660686]
[1735520646700,1.06954243,698.64,697.84,0.56386177]
[1735520646903,1.06954243,698.73,697.85,0.56386177]
[1735520647104,0.26364005,698.72,697.86,0.56386177]
[1735520647401,0.26364005,698.72,697.87,0.56386177]
[1735520647603,0.26364005,698.72,697.88,0.56386177]
[1735520647800,0.26364005,698.72,697.89,0.56386177]
[1735520647995,0.26364005,698.72,697.9,0.56386177]
[1735520648198,0.26364005,698.72,697.91,0.56386177]
[1735520648399,0.26364005,698.72,697.82,0.28660686]
[1735520648400,0.26364005,698.72,697.92,0.56386177]
[1735520648596,0.26364005,698.72,697.93,0.56386177]
[1735520648902,1.06954243,698.73,697.94,0.56386177]
[1735520649100,0.26371868,698.72,697.95,0.56386177]
[1735520649402,1.06954243,698.53,697.82,0.28660686]
[1735520649696,0.26371868,698.52,697.83,0.56420258]
[1735520649895,0.26371868,698.52,697.84,0.56420258]
[1735520650100,0.26371868,698.52,697.85,0.56420258]
[1735520650296,0.26371868,698.52,697.86,0.56420258]
[1735520650503,0.26371868,698.52,696.85,1.06189398]
[1735520650701,1.06954243,698.49,696.87,0.28699757]
[1735520650902,0.26371868,698.48,696.87,0.28699757]
[1735520651102,0.26371868,698.48,696.88,0.56363965]
[1735520651298,0.26373958,698.47,696.89,0.56363965]
[1735520651503,1.06954243,698.49,696.9,0.56363965]
[1735520651703,1.06954243,698.49,696.91,0.56363965]
[1735520651908,1.06954243,698.49,696.92,0.56363965]
[1735520652203,1.06954243,698.49,696.87,0.28699757]
[1735520652413,1.06954243,698.58,696.88,0.56337565]
[1735520652604,0.2637549,698.57,696.89,0.56337565]
[1735520652798,0.2637549,698.57,696.87,0.28699757]
[1735520653004,0.2637549,698.57,696.88,0.56303945]
[1735520653205,0.2637549,698.57,696.89,0.56303945]
[1735520653405,0.2637549,698.57,696.9,0.56303945]
[1735520653605,0.2637549,698.57,696.91,0.56303945]
[1735520653806,0.2637549,698.57,696.92,0.56303945]
[1735520654006,0.2637549,698.56,696.93,0.56303945]
[1735520654205,1.06954243,698.7,696.94,0.56303945]
[1735520654206,0.2637549,698.55,696.94,0.56303945]
[1735520654401,0.2637549,698.54,696.95,0.56303945]
[1735520654605,0.2637549,698.53,696.96,0.56303945]
[1735520654906,0.2637549,698.52,696.97,0.56303945]
[1735520655205,0.2637549,698.51,696.87,0.28699757]
[1735520655404,0.2637549,698.5,696.88,0.56233363]
[1735520655599,0.2637549,698.49,696.89,0.56233363]
[1735520655801,0.2637549,698.48,696.9,0.56233363]
[1735520656002,0.2637549,698.47,696.91,0.56233363]
[1735520656208,0.26377262,698.46,696.92,0.56233363]
[1735520656401,0.26377262,698.45,696.93,0.56233363]
[1735520656602,0.26377262,698.44,696.94,0.56233363]
[1735520656803,0.26377262,698.43,696.95,0.56233363]
[1735520657003,0.26377262,698.43,696.87,0.28699757]
[1735520657004,0.26377262,698.42,696.96,0.56233363]
[1735520657307,0.26377262,698.41,696.97,0.56233363]
[1735520657502,0.26377262,698.4,696.98,0.56233363]
[1735520657705,0.26377262,698.39,696.99,0.56233363]
[1735520657907,0.62090799,699.26,696.87,0.28699757]
[1735520657908,0.26377262,698.38,697.0,0.56233363]
[1735520658105,0.26377262,698.37,697.01,0.56233363]
[1735520658307,0.26377262,698.36,697.01,0.56233363]
[1735520658505,1.06954243,698.72,697.02,0.56233363]
[1735520658708,0.26378638,698.71,697.03,0.84926532]
[1735520658904,0.26378638,698.71,697.04,0.56233363]
[1735520659106,0.26378638,698.71,697.03,0.28693169]
[1735520659107,0.26378638,698.71,697.05,0.56233363]
[1735520659309,0.26378638,698.7,697.06,0.56233363]
[1735520659513,0.26378638,698.69,697.07,0.56233363]
[1735520659704,0.26378638,698.68,697.08,0.56233363]
[1735520659908,1.06954243,698.75,697.09,0.56233363]
[1735520659909,0.55004455,698.67,697.09,0.56233363]
[1735520660112,0.55004865,698.66,697.1,0.56233363]
[1735520660311,0.26378638,698.65,697.11,0.56233363]
[1735520660511,0.26378638,698.65,697.12,0.56233363]
[1735520660817,0.26378638,698.65,697.13,0.56233363]
[1735520661116,0.2637859,698.64,697.14,0.56233363]
[1735520661317,0.2637859,698.65,697.15,0.56127193]
[1735520661519,0.2637859,698.64,697.16,0.56127193]
[1735520661712,0.2637859,698.63,697.03,0.28693169]
[1735520661917,0.55006456,698.62,697.04,0.56121174]
[1735520662218,0.2637859,698.61,697.05,0.56121174]
[1735520662512,0.2637859,698.61,697.06,0.84813108]
[1735520662717,0.2637859,698.6,697.07,0.84812697]
[1735520662918,0.2637859,698.59,697.08,0.56121174]
[1735520663119,0.2637859,698.58,697.09,0.56121174]
[1735520663317,0.2637859,698.57,697.07,0.28691523]
[1735520663512,0.26379261,698.56,697.1,0.56115854]
[1735520663720,0.26379261,698.55,697.11,0.56115854]
[1735520664019,0.26379261,698.54,697.12,0.56115854]
[1735520664215,0.26379261,698.53,697.07,0.28691523]
[1735520664412,0.26379261,698.52,697.08,0.56096153]
[1735520664616,0.26379261,698.51,697.09,0.56096153]
[1735520664816,0.26379261,698.5,697.1,0.56096153]
[1735520665018,0.26379261,698.49,697.11,0.56096153]
[1735520665220,0.26379261,698.48,697.12,0.56096153]
[1735520665419,0.26379261,698.47,697.13,0.56096153]
[1735520665620,0.26379261,698.46,697.14,0.56096153]
[1735520665820,0.26379261,698.45,697.15,0.56096153]
[1735520666015,0.26379261,698.44,697.16,0.56096153]
[1735520666218,0.26379261,698.43,697.17,0.56096153]
[1735520666419,0.26379261,698.42,697.18,0.56096153]
[1735520666619,0.26379261,698.41,697.19,0.56096153]
[1735520666915,0.26379261,698.4,697.2,0.56096153]
[1735520667116,0.26379261,698.39,697.21,0.56096153]
[1735520667319,0.26379261,698.38,697.22,0.56096153]
[1735520667520,0.28627866,698.62,697.23,0.56096153]
[1735520667521,0.26379261,698.37,697.23,0.56096153]
[1735520667822,0.26379261,698.37,697.07,0.28691523]
[1735520667823,0.26379261,698.36,697.24,0.56096153]
[1735520668023,0.26379261,698.35,697.25,0.56096153]
[1735520668217,0.26379261,698.34,697.26,0.56096153]
[1735520668420,0.26379261,698.33,697.27,0.56096153]
[1735520668722,0.26375474,698.32,697.28,0.56096153]
[1735520668918,0.26375474,698.32,697.07,0.28691523]
[1735520668919,0.26375474,698.31,697.29,0.56096153]
[1735520669118,0.26375474,698.3,697.3,0.56096153]
[1735520669324,0.26375474,698.29,697.31,0.56096153]
[1735520669619,0.26375474,698.28,697.32,0.56096153]
[1735520669820,0.26375474,698.27,697.33,0.56096153]
[1735520670020,0.26375474,698.26,697.34,0.56096153]
[1735520670217,0.26375474,698.25,697.35,0.56096153]
[1735520670423,0.26375474,698.24,697.36,0.56096153]
[1735520670618,0.28627866,698.62,697.37,0.56096153]
[1735520670917,0.2637583,698.61,697.07,0.28691523]
[1735520671224,0.26375405,698.61,697.08,0.560589]
[1735520671424,0.26375405,698.61,697.09,0.560589]
[1735520671729,0.26375405,698.61,697.1,0.560589]
[1735520671926,1.06954243,698.6,697.11,0.560589]
[1735520672123,0.26375405,698.59,697.12,0.560589]
[1735520672425,0.26375405,698.59,697.13,0.84747953]
[1735520672622,0.26375405,698.59,697.14,0.560589]
[1735520672819,0.26375405,698.59,697.15,0.560589]
[1735520673024,1.06954243,698.58,697.16,0.84746719]
[1735520673219,1.06954243,698.58,697.17,0.560589]
[1735520673220,0.26375405,698.57,697.17,0.560589]
[1735520673424,0.28630325,698.56,697.18,0.560589]
[1735520673623,0.26377591,698.55,697.19,0.560589]
[1735520673822,0.26377591,698.55,697.2,0.560589]
[1735520674023,1.06954243,698.5,697.21,0.560589]
[1735520674323,0.26377591,698.49,697.22,0.560589]
[1735520674518,0.26377591,698.49,697.23,0.560589]
[1735520674724,0.26377591,698.49,697.24,0.560589]
[1735520674925,0.26377591,698.49,697.25,0.560589]
[1735520675127,1.06954243,698.46,697.26,0.560589]
[1735520675327,0.26377591,698.45,697.27,0.560589]
[1735520675625,0.26377591,698.45,697.28,0.560589]
[1735520675825,0.26377591,698.45,697.29,0.560589]
[1735520676021,1.06954243,698.49,697.3,0.560589]
[1735520676227,0.26378562,698.48,697.31,0.560589]
[1735520676426,0.26378562,698.48,697.16,0.28687819]
[1735520676623,0.26378562,698.48,697.17,0.56064522]
[1735520676822,0.26378562,698.48,697.18,0.56064522]
[1735520677022,1.06954243,698.44,697.19,0.56064522]
[1735520677224,0.26378562,698.43,697.2,0.56064522]
[1735520677424,0.26378562,698.43,697.21,0.56064522]
[1735520677625,0.26378562,698.43,697.22,0.56064522]
[1735520677825,0.26378562,698.43,697.23,0.56064522]
[1735520678025,1.06954243,698.36,697.24,0.56064522]
[1735520678222,0.26378562,698.35,697.25,0.56064522]
[1735520678428,1.06954243,698.36,697.26,0.56064522]
[1735520678630,0.26383464,698.35,697.27,0.56064522]
[1735520678828,0.26383464,698.35,697.28,0.56064522]
[1735520679029,0.26383464,698.35,697.29,0.56064522]
[1735520679232,0.26383464,698.35,697.3,0.56064522]
[1735520679430,1.06954243,698.27,697.31,0.56064522]
[1735520679631,0.26383464,698.26,697.32,0.56064522]
[1735520679847,0.26383464,698.26,697.33,0.56064522]
[1735520680030,0.26383464,698.26,697.34,0.56119231]
[1735520680232,0.26383464,698.26,697.35,0.56119231]
[1735520680530,0.26383464,698.26,697.36,0.56119231]
[1735520680731,0.26383464,698.26,697.37,0.56119231]
[1735520680930,1.06954243,698.3,697.38,0.56119231]
[1735520681131,0.2637989,698.29,697.39,0.56119231]
[1735520681332,0.2637989,698.29,697.4,0.56119231]
[1735520681632,0.2637989,698.29,697.41,0.56113607]
[1735520681827,0.2637989,698.29,697.42,0.56113607]
[1735520681828,1.33334133,698.29,697.42,0.56113607]
[1735520682034,0.2637989,698.28,697.43,0.56113607]
[1735520682332,0.2637989,698.28,697.44,0.56113607]
[1735520682533,0.2637989,698.28,697.45,0.56113607]
[1735520682728,0.2637989,698.28,697.46,0.56113607]
[1735520682928,0.2637989,698.28,697.47,0.56113607]
[1735520683127,1.06954243,698.13,697.48,0.56113607]
[1735520683332,0.2637989,698.12,697.49,0.56113607]
[1735520683533,0.26380087,698.11,697.5,0.56113607]
[1735520683734,0.26380087,698.1,697.51,0.56113607]
[1735520683933,0.26380087,698.09,697.52,0.56113607]
[1735520684135,1.06954243,698.05,697.53,0.56113607]
[1735520684433,1.06954243,698.05,697.54,0.56113607]
[1735520684633,1.06954243,698.05,697.55,0.56113607]
[1735520684833,1.06954243,698.05,697.56,0.56113607]
[1735520685033,1.06954243,698.05,697.57,0.56113607]
[1735520685235,1.06954243,698.04,697.16,0.28687819]
[1735520685434,1.06954243,698.04,697.17,0.56136985]
[1735520685629,1.06954243,698.04,697.18,0.56136985]
[1735520685831,0.26381591,698.03,697.19,0.56136985]
[1735520686134,1.06954243,697.99,697.2,0.56136985]
[1735520686434,1.06954243,697.99,697.21,0.56136985]
[1735520686628,1.06954243,697.99,697.22,0.56136985]
[1735520686828,1.06954243,697.99,697.23,0.56136985]
[1735520687137,1.06954243,698.08,697.24,0.56136985]
[1735520687334,1.06954243,698.08,697.25,0.56136985]
[1735520687535,1.06954243,698.08,697.26,0.56136985]
[1735520687729,1.06954243,698.08,697.27,0.56136985]
[1735520687934,1.06954243,698.1,697.28,0.56136985]
[1735520688134,1.06954243,698.1,697.29,0.56136985]
[1735520688334,1.06954243,698.1,697.3,0.56136985]
[1735520688535,1.06954243,698.1,697.31,0.56136985]
[1735520688734,1.06954243,698.1,697.32,0.56136985]
[1735520688936,1.06954243,698.1,697.33,0.56136985]
[1735520689236,1.06954243,698.1,697.34,0.56128353]
[1735520689432,1.06954243,698.1,697.35,0.56128353]
[1735520689635,1.06954243,698.1,697.36,0.56128353]
[1735520689837,1.06954243,698.1,697.37,0.56128353]
[1735520690035,1.06954243,698.1,697.38,0.56128353]
[1735520690337,1.06954243,698.1,697.39,0.56128353]
[1735520690539,1.06954243,698.1,697.16,0.28687819]
[1735520690540,1.06954243,698.1,697.4,0.56128353]
[1735520690739,1.06954243,698.1,697.41,0.56128353]
[1735520690941,1.06954243,698.1,697.42,0.56128353]
[1735520691139,1.06954243,698.1,697.43,0.56128353]
[1735520691339,1.06954243,698.1,697.44,0.56128353]
[1735520691540,1.06954243,698.11,697.45,0.56128353]
[1735520691739,1.06954243,698.11,697.46,0.56128353]
[1735520691941,1.06954243,698.11,697.47,0.56128353]
[1735520692139,1.06954243,698.11,697.48,0.56128353]
[1735520692340,1.06954243,698.11,697.49,0.56128353]